fUSD/lending_fUSD_20240923
["ID","MTS","AMOUNT","RATE_DAILY","PERIOD"]
[338936397,1727086252182,-500.0,0.00012991,2]
[338936398,1727086252192,-523.75,0.00012991,2]
[338936399,1727086252202,-500.0,0.00012991,2]
[338936400,1727086252211,-500.0,0.00012991,2]
[338936401,1727086252220,-580.03,0.00012991,2]
[338936402,1727086252229,-500.0,0.00012991,2]
[338936403,1727086252239,-500.0,0.00012991,2]
[338936404,1727086252249,-500.0,0.00012991,2]
[338936405,1727086252258,-1165.11,0.00012991,2]
[338936406,1727086252268,-500.0,0.00012991,2]
[338936407,1727086252279,-500.0,0.00012991,2]
[338936408,1727086252289,-500.0,0.00012991,2]
[338936409,1727086252298,-605.11,0.00012991,2]
[338936410,1727086252308,-500.0,0.00012991,2]
[338936411,1727086252317,-500.0,0.00012991,2]
[338936412,1727086252326,-500.0,0.00012991,2]
[338936413,1727086252339,-500.0,0.00012991,2]
[338936414,1727086252349,-634.85,0.00012991,2]
[338936415,1727086252359,-179.1841342,0.00012991,2]
[338936416,1727086252368,-500.0,0.00012991,2]
[338936417,1727086252379,-500.0,0.00012991,2]
[338936418,1727086252389,-500.0,0.00012991,2]
[338936419,1727086252398,-722.14,0.00012991,2]
[338936420,1727086252408,-500.0,0.00012991,2]
[338936421,1727086252418,-1769.21,0.00012991,2]
[338936422,1727086252428,-500.0,0.00012991,2]
[338936423,1727086252437,-547.5250528,0.00012991,2]
[338936424,1727086252447,-1000.0,0.00012991,2]
[338936425,1727086252457,-500.0,0.00012991,2]
[338936426,1727086252467,-500.0,0.00012991,2]
[338936427,1727086252476,-850.81,0.00012991,2]
[338936428,1727086252486,-618.51579837,0.00012991,2]
[338936429,1727086252565,-512.52,0.00012991,2]
[338936430,1727086252574,-1110.54,0.00012991,2]
[338936431,1727086252585,-762.98,0.00012991,2]
[338936432,1727086252594,-527.07,0.00012991,2]
[338936433,1727086252603,-798.62,0.00012991,2]
[338936434,1727086252613,-500.0,0.00012991,2]
[338936435,1727086252623,-500.0,0.00012991,2]
[338936436,1727086252632,-523.91,0.00012991,2]
[338936437,1727086252642,-500.0,0.00012991,2]
[338936438,1727086252652,-500.0,0.00012991,2]
[338936439,1727086252661,-837.3,0.00012991,2]
[338936440,1727086252672,-398.64420224,0.00012991,2]
[338936441,1727086252681,-861.12,0.00012991,2]
[338936442,1727086252691,-500.0,0.00012991,2]
[338936443,1727086252701,-755.78,0.00012991,2]
[338936444,1727086252710,-1074.12,0.00012991,2]
[338936445,1727086252719,-500.0,0.00012991,2]
[338936446,1727086252729,-500.0,0.00012991,2]
[338936447,1727086252738,-524.09,0.00012991,2]
[338936448,1727086252748,-599.24,0.00012991,2]
[338936449,1727086252757,-899.91,0.00012991,2]
[338936450,1727086252767,-500.0,0.00012991,2]
[338936451,1727086252776,-500.0,0.00012991,2]
[338936452,1727086252786,-500.0,0.00012991,2]
[338936453,1727086252796,-500.0,0.00012991,2]
[338936454,1727086252806,-500.0,0.00012991,2]
[338936455,1727086252815,-1098.33,0.00012991,2]
[338936456,1727086252825,-500.0,0.00012991,2]
[338936457,1727086252835,-500.0,0.00012991,2]
[338936458,1727086252844,-1039.47,0.00012991,2]
[338936459,1727086252854,-500.0,0.00012991,2]
[338936460,1727086252864,-500.0,0.00012991,2]
[338936461,1727086252873,-500.0,0.00012991,2]
[338936462,1727086252883,-2127.45,0.00012991,2]
[338936463,1727086252892,-500.0,0.00012991,2]
[338936464,1727086252901,-500.0,0.00012991,2]
[338936465,1727086252910,-500.0,0.00012991,2]
[338936466,1727086252919,-913.56,0.00012991,2]
[338936467,1727086252929,-1182.67,0.00012991,2]
[338936468,1727086252940,-616.2,0.00012991,2]
[338936469,1727086252950,-677.13,0.00012991,2]
[338936470,1727086252960,-500.0,0.00012991,2]
[338936471,1727086252969,-500.0,0.00012991,2]
[338936472,1727086252979,-1219.24,0.00012991,2]
[338936473,1727086252989,-500.0,0.00012991,2]
[338936474,1727086252999,-1747.05,0.00012991,2]
[338936475,1727086253008,-500.0,0.00012991,2]
[338936476,1727086253021,-823.96,0.00012991,2]
[338936477,1727086253031,-500.0,0.00012991,2]
[338936478,1727086253040,-500.0,0.00012991,2]
[338936479,1727086253050,-866.04,0.00012991,2]
[338936480,1727086253059,-892.97,0.00012991,2]
[338936481,1727086253068,-500.0,0.00012991,2]
[338936482,1727086253077,-2905.77,0.00012991,2]
[338936483,1727086253088,-2905.77,0.00012991,2]
[338936484,1727086253097,-1864.48,0.00012991,2]
[338936485,1727086253107,-500.0,0.00012991,2]
[338936486,1727086253117,-584.86,0.00012991,2]
[338936487,1727086253126,-680.45,0.00012991,2]
[338936488,1727086253135,-500.0,0.00012991,2]
[338936489,1727086253144,-500.0,0.00012991,2]
[338936490,1727086253153,-827.64,0.00012991,2]
[338936491,1727086253163,-500.0,0.00012991,2]
[338936492,1727086253172,-500.0,0.00012991,2]
[338936493,1727086253181,-500.0,0.00012991,2]
[338936494,1727086253190,-500.0,0.00012991,2]
[338936495,1727086253201,-500.0,0.00012991,2]
[338936496,1727086253211,-1264.79,0.00012991,2]
[338936497,1727086253220,-1060.91,0.00012991,2]
[338936498,1727086253230,-500.0,0.00012991,2]
[338936499,1727086253239,-1720.62,0.00012991,2]
[338936500,1727086253248,-1174.46,0.00012991,2]
[338936501,1727086253257,-500.0,0.00012991,2]
[338936502,1727086253266,-1662.19,0.00012991,2]
[338936503,1727086253275,-500.0,0.00012991,2]
[338936504,1727086253285,-1102.43,0.00012991,2]
[338936505,1727086253294,-500.0,0.00012991,2]
[338936506,1727086253303,-1604.63,0.00012991,2]
[338936507,1727086253313,-659.45,0.00012991,2]
[338936508,1727086253323,-500.0,0.00012991,2]
[338936509,1727086253333,-611.33,0.00012991,2]
[338936510,1727086253342,-500.0,0.00012991,2]
[338936511,1727086253351,-522.56,0.00012991,2]
[338936512,1727086253360,-500.0,0.00012991,2]
[338936513,1727086253370,-500.0,0.00012991,2]
[338936514,1727086253379,-500.0,0.00012991,2]
[338936515,1727086253388,-825.45,0.00012991,2]
[338936516,1727086253398,-2170.76,0.00012991,2]
[338936517,1727086253408,-234.69587429,0.00012991,2]
[338936518,1727086253418,-500.0,0.00012991,2]
[338936519,1727086253428,-500.0,0.00012991,2]
[338936520,1727086253437,-504.13,0.00012991,2]
[338936521,1727086253447,-500.0,0.00012991,2]
[338936522,1727086253456,-1280.82,0.00012991,2]
[338936523,1727086253466,-500.0,0.00012991,2]
[338936524,1727086253475,-1353.16,0.00012991,2]
[338936525,1727086253484,-1251.52,0.00012991,2]
[338936526,1727086253495,-868.94,0.00012991,2]
[338936527,1727086253504,-3888.36,0.00012991,2]
[338936528,1727086253513,-500.0,0.00012991,2]
[338936529,1727086253523,-500.0,0.00012991,2]
[338936530,1727086253532,-500.0,0.00012991,2]
[338936531,1727086253541,-1418.76,0.00012991,2]
[338936532,1727086253550,-749.24,0.00012991,2]
[338936533,1727086253560,-1467.17,0.00012991,2]
[338936534,1727086253569,-858.86,0.00012991,2]
[338936535,1727086253579,-707.35,0.00012991,2]
[338936536,1727086253589,-500.0,0.00012991,2]
[338936537,1727086253598,-500.0,0.00012991,2]
[338936538,1727086253607,-500.0,0.00012991,2]
[338936539,1727086253617,-905.21,0.00012991,2]
[338936540,1727086253628,-905.21,0.00012991,2]
[338936541,1727086253637,-649.42,0.00012991,2]
[338936542,1727086253647,-500.0,0.00012991,2]
[338936543,1727086253657,-500.0,0.00012991,2]
[338936544,1727086253667,-2331.31,0.00012991,2]
[338936545,1727086253676,-500.0,0.00012991,2]
[338936546,1727086253686,-729.58,0.00012991,2]
[338936547,1727086253696,-500.0,0.00012991,2]
[338936548,1727086253705,-500.0,0.00012991,2]
[338936549,1727086253714,-792.44,0.00012991,2]
[338936550,1727086253724,-500.0,0.00012991,2]
[338936551,1727086253733,-1043.34,0.00012991,2]
[338936552,1727086253743,-1725.28,0.00012991,2]
[338936553,1727086253753,-500.0,0.00012991,2]
[338936554,1727086253762,-500.0,0.00012991,2]
[338936555,1727086253771,-646.88,0.00012991,2]
[338936556,1727086253781,-500.0,0.00012991,2]
[338936557,1727086253790,-508.08,0.00012991,2]
[338936558,1727086253799,-500.0,0.00012991,2]
[338936559,1727086253809,-500.0,0.00012991,2]
[338936560,1727086253818,-1317.6,0.00012991,2]
[338936561,1727086253828,-500.0,0.00012991,2]
[338936562,1727086253838,-500.0,0.00012991,2]
[338936563,1727086253847,-1573.66,0.00012991,2]
[338936564,1727086253857,-500.0,0.00012991,2]
[338936565,1727086253867,-951.71,0.00012991,2]
[338936566,1727086253876,-500.0,0.00012991,2]
[338936567,1727086253886,-500.0,0.00012991,2]
[338936568,1727086253895,-500.0,0.00012991,2]
[338936569,1727086253905,-661.09,0.00012991,2]
[338936570,1727086253915,-1178.66,0.00012991,2]
[338936571,1727086253924,-661.09,0.00012991,2]
[338936572,1727086253934,-5100.77,0.00012991,2]
[338936573,1727086253947,-500.0,0.00012991,2]
[338936574,1727086253957,-500.0,0.00012991,2]
[338936575,1727086253966,-500.0,0.00012991,2]
[338936576,1727086253976,-500.0,0.00012991,2]
[338936577,1727086253987,-644.58,0.00012991,2]
[338936578,1727086253996,-901.72,0.00012991,2]
[338936579,1727086254005,-968.35,0.00012991,2]
[338936580,1727086254015,-500.0,0.00012991,2]
[338936581,1727086254025,-507.9,0.00012991,2]
[338936582,1727086254037,-559.72,0.00012991,2]
[338936583,1727086254047,-2010.68,0.00012991,2]
[338936584,1727086254057,-609.13,0.00012991,2]
[338936585,1727086254067,-500.0,0.00012991,2]
[338936586,1727086254076,-500.0,0.00012991,2]
[338936587,1727086254087,-828.13,0.00012991,2]
[338936588,1727086254096,-500.0,0.00012991,2]
[338936589,1727086254106,-714.45,0.00012991,2]
[338936590,1727086254116,-500.0,0.00012991,2]
[338936591,1727086254126,-500.0,0.00012991,2]
[338936592,1727086254135,-973.04,0.00012991,2]
[338936593,1727086254145,-500.0,0.00012991,2]
[338936594,1727086254155,-2297.81,0.00012991,2]
[338936595,1727086254164,-500.0,0.00012991,2]
[338936596,1727086254174,-500.0,0.00012991,2]
[338936597,1727086254183,-500.0,0.00012991,2]
[338936598,1727086254194,-500.0,0.00012991,2]
[338936599,1727086254203,-500.0,0.00012991,2]
[338936600,1727086254213,-1263.87,0.00012991,2]
[338936601,1727086254223,-500.0,0.00012991,2]
[338936602,1727086254232,-500.0,0.00012991,2]
[338936603,1727086254242,-500.0,0.00012991,2]
[338936604,1727086254251,-656.11,0.00012991,2]
[338936605,1727086254261,-545.0,0.00012991,2]
[338936606,1727086254271,-1648.23,0.00012991,2]
[338936607,1727086254280,-687.94,0.00012991,2]
[338936608,1727086254290,-1060.66,0.00012991,2]
[338936609,1727086254300,-500.0,0.00012991,2]
[338936610,1727086254310,-500.0,0.00012991,2]
[338936611,1727086254320,-500.0,0.00012991,2]
[338936612,1727086254329,-500.0,0.00012991,2]
[338936613,1727086254338,-500.0,0.00012991,2]
[338936614,1727086254348,-500.0,0.00012991,2]
[338936615,1727086254357,-500.0,0.00012991,2]
[338936616,1727086254367,-500.0,0.00012991,2]
[338936617,1727086254376,-500.0,0.00012991,2]
[338936618,1727086254386,-2354.18,0.00012991,2]
[338936619,1727086254395,-548.35,0.00012991,2]
[338936620,1727086254404,-500.0,0.00012991,2]
[338936621,1727086254414,-500.0,0.00012991,2]
[338936622,1727086254423,-1904.45,0.00012991,2]
[338936623,1727086254433,-698.79,0.00012991,2]
[338936624,1727086254442,-500.0,0.00012991,2]
[338936625,1727086254452,-500.0,0.00012991,2]
[338936626,1727086254462,-500.0,0.00012991,2]
[338936627,1727086254472,-2486.1,0.00012991,2]
[338936628,1727086254481,-1044.48,0.00012991,2]
[338936629,1727086254491,-444.06319163,0.00012991,2]
[338936630,1727086254501,-771.22,0.00012991,2]
[338936631,1727086254510,-500.0,0.00012991,2]
[338936632,1727086254520,-1453.37,0.00012991,2]
[338936633,1727086254529,-500.0,0.00012991,2]
[338936634,1727086254539,-500.0,0.00012991,2]
[338936635,1727086254548,-500.0,0.00012991,2]
[338936636,1727086254559,-500.0,0.00012992,2]
[338936637,1727086254569,-500.0,0.00012992,2]
[338936638,1727086254578,-500.0,0.00012992,2]
[338936639,1727086254588,-500.0,0.00012992,2]
[338936640,1727086254598,-500.0,0.00012992,2]
[338936641,1727086254608,-500.0,0.00012992,2]
[338936642,1727086254617,-500.0,0.00012992,2]
[338936643,1727086254627,-500.0,0.00012992,2]
[338936644,1727086254636,-500.0,0.00012992,2]
[338936645,1727086254646,-500.0,0.00012992,2]
[338936646,1727086254656,-500.0,0.00012992,2]
[338936647,1727086254666,-500.0,0.00012992,2]
[338936648,1727086254676,-500.0,0.00012992,2]
[338936649,1727086254686,-500.0,0.00012992,2]
[338936650,1727086254695,-500.0,0.00012992,2]
[338936651,1727086254707,-1192.46,0.00012992,2]
[338936652,1727086254716,-500.0,0.00012992,2]
[338936653,1727086254726,-500.0,0.00012992,2]
[338936654,1727086254736,-500.0,0.00012992,2]
[338936655,1727086254745,-500.0,0.00012992,2]
[338936656,1727086254755,-750.47,0.00012992,2]
[338936657,1727086254765,-601.66,0.00012992,2]
[338936658,1727086254774,-500.0,0.00012992,2]
[338936659,1727086254784,-500.0,0.00012992,2]
[338936660,1727086254793,-500.0,0.00012992,2]
[338936661,1727086254803,-500.0,0.00012992,2]
[338936662,1727086254813,-500.0,0.00012992,2]
[338936663,1727086254824,-500.0,0.00012992,2]
[338936664,1727086254833,-500.0,0.00012992,2]
[338936665,1727086254849,-500.0,0.00012992,2]
[338936666,1727086254859,-500.0,0.00012992,2]
[338936667,1727086254868,-693.74,0.00012992,2]
[338936668,1727086254877,-500.0,0.00012992,2]
[338936669,1727086254887,-500.0,0.00012992,2]
[338936670,1727086254896,-500.0,0.00012992,2]
[338936671,1727086254906,-500.0,0.00012992,2]
[338936672,1727086254915,-500.0,0.00012992,2]
[338936673,1727086254925,-500.0,0.00012992,2]
[338936674,1727086254934,-500.0,0.00012992,2]
[338936675,1727086254947,-500.0,0.00012992,2]
[338936676,1727086254956,-500.0,0.00012992,2]
[338936677,1727086254966,-500.0,0.00012992,2]
[338936678,1727086254976,-500.0,0.00012992,2]
[338936679,1727086254986,-815.9,0.00012992,2]
[338936680,1727086254995,-500.0,0.00012992,2]
[338936681,1727086255005,-500.0,0.00012992,2]
[338936682,1727086255015,-746.06,0.00012992,2]
[338936683,1727086255026,-500.0,0.00012992,2]
[338936684,1727086255035,-500.0,0.00012992,2]
[338936685,1727086255045,-500.0,0.00012992,2]
[338936686,1727086255054,-686.1,0.00012992,2]
[338936687,1727086255064,-500.0,0.00012992,2]
[338936688,1727086255074,-500.0,0.00012992,2]
[338936689,1727086255084,-1260.99,0.00012992,2]
[338936690,1727086255093,-649.49788473,0.00012992,2]
[338936691,1727086255103,-500.0,0.00012992,2]
[338936692,1727086255112,-500.0,0.00012992,2]
[338936693,1727086255121,-229.47118703,0.00012992,2]
[338936694,1727086255131,-500.0,0.00012992,2]
[338936695,1727086255140,-816.45,0.00012992,2]
[338936696,1727086255149,-937.65,0.00012992,2]
[338936697,1727086255158,-500.0,0.00012992,2]
[338936698,1727086255167,-500.0,0.00012992,2]
[338936699,1727086255177,-500.0,0.00012992,2]
[338936700,1727086255187,-500.0,0.00012992,2]
[338936701,1727086255196,-581.77,0.00012992,2]
[338936702,1727086255206,-500.0,0.00012992,2]
[338936703,1727086255215,-500.0,0.00012992,2]
[338936704,1727086255224,-500.0,0.00012992,2]
[338936705,1727086255235,-516.70660671,0.00012992,2]
[338936706,1727086255245,-537.54,0.00012992,2]
[338936707,1727086255254,-500.0,0.00012992,2]
[338936708,1727086255264,-501.04055325,0.00012992,2]
[338936709,1727086255273,-500.0,0.00012992,2]
[338936710,1727086255283,-603.9,0.00012992,2]
[338936711,1727086255292,-500.0,0.00012992,2]
[338936712,1727086255301,-500.0,0.00012992,2]
[338936713,1727086255310,-1548.79,0.00012992,2]
[338936714,1727086255320,-1787.31,0.00012992,2]
[338936715,1727086255329,-500.0,0.00012992,2]
[338936716,1727086255340,-500.0,0.00012992,2]
[338936717,1727086255349,-500.0,0.00012992,2]
[338936718,1727086255359,-470.76939048,0.00012992,2]
[338936719,1727086255368,-500.0,0.00012992,2]
[338936720,1727086255377,-1541.01,0.00012992,2]
[338936721,1727086255386,-1314.63,0.00012992,2]
[338936722,1727086255396,-500.0,0.00012992,2]
[338936723,1727086255405,-500.0,0.00012992,2]
[338936724,1727086255415,-500.0,0.00012992,2]
[338936725,1727086255424,-639.27,0.00012992,2]
[338936726,1727086255433,-500.0,0.00012992,2]
[338936727,1727086255443,-857.49,0.00012992,2]
[338936728,1727086255452,-500.0,0.00012992,2]
[338936729,1727086255461,-500.0,0.00012992,2]
[338936730,1727086255471,-500.0,0.00012992,2]
[338936731,1727086255480,-263.29425187,0.00012992,2]
[338936732,1727086255490,-741.92,0.00012992,2]
[338936733,1727086255500,-500.0,0.00012992,2]
[338936734,1727086255509,-500.0,0.00012992,2]
[338936735,1727086255518,-500.0,0.00012992,2]
[338936736,1727086255528,-958.43,0.00012992,2]
[338936737,1727086255538,-500.0,0.00012992,2]
[338936738,1727086255547,-500.0,0.00012992,2]
[338936739,1727086255556,-500.0,0.00012992,2]
[338936740,1727086255566,-500.0,0.00012992,2]
[338936741,1727086255575,-500.0,0.00012992,2]
[338936742,1727086255585,-150.0,0.00012992,2]
[338936743,1727086255594,-500.0,0.00012992,2]
[338936744,1727086255603,-500.0,0.00012992,2]
[338936745,1727086255613,-153.77421257,0.00012992,2]
[338936746,1727086255623,-1269.91,0.00012992,2]
[338936747,1727086255632,-647.91,0.00012992,2]
[338936748,1727086255642,-500.0,0.00012992,2]
[338936749,1727086255652,-1781.16,0.00012992,2]
[338936750,1727086255662,-1465.51,0.00012992,2]
[338936751,1727086255671,-500.0,0.00012992,2]
[338936752,1727086255681,-383.81459184,0.00012992,2]
[338936753,1727086255691,-543.16759806,0.00012992,2]
[338936754,1727086255700,-676.76,0.00012992,2]
[338936755,1727086255711,-2702.14,0.00012992,2]
[338936756,1727086255721,-500.0,0.00012992,2]
[338936757,1727086255731,-300.0,0.00012992,2]
[338936758,1727086255740,-599.07,0.00012992,2]
[338936759,1727086255750,-500.0,0.00012992,2]
[338936760,1727086255760,-500.0,0.00012992,2]
[338936761,1727086255769,-1006.47,0.00012992,2]
[338936762,1727086255778,-191.76946921,0.00012992,2]
[338936763,1727086255788,-500.0,0.00012992,2]
[338936764,1727086255798,-500.0,0.00012992,2]
[338936765,1727086255808,-500.0,0.00012992,2]
[338936766,1727086255817,-500.0,0.00012992,2]
[338936767,1727086255827,-500.0,0.00012992,2]
[338936768,1727086255837,-500.0,0.00012992,2]
[338936769,1727086255847,-2801.18,0.00012992,2]
[338936770,1727086255856,-500.0,0.00012992,2]
[338936771,1727086255866,-500.0,0.00012992,2]
[338936772,1727086255876,-1582.67,0.00012992,2]
[338936773,1727086255886,-426.47324818,0.00012992,2]
[338936774,1727086255895,-500.0,0.00012992,2]
[338936775,1727086255905,-500.0,0.00012992,2]
[338936776,1727086255915,-500.0,0.00012992,2]
[338936777,1727086255925,-500.0,0.00012992,2]
[338936778,1727086255935,-500.0,0.00012992,2]
[338936779,1727086255949,-500.0,0.00012992,2]
[338936780,1727086255958,-1215.56,0.00012992,2]
[338936781,1727086255968,-500.0,0.00012992,2]
[338936782,1727086255978,-500.0,0.00012992,2]
[338936783,1727086255989,-1051.4,0.00012992,2]
[338936784,1727086255999,-500.0,0.00012992,2]
[338936785,1727086256009,-500.0,0.00012992,2]
[338936786,1727086256021,-500.0,0.00012992,2]
[338936787,1727086256032,-500.0,0.00012992,2]
[338936788,1727086256042,-1241.09,0.00012992,2]
[338936789,1727086256051,-500.0,0.00012992,2]
[338936790,1727086256061,-552.13,0.00012992,2]
[338936791,1727086256071,-500.0,0.00012992,2]
[338936792,1727086256080,-590.54,0.00012992,2]
[338936793,1727086256091,-500.0,0.00012992,2]
[338936794,1727086256100,-500.0,0.00012992,2]
[338936795,1727086256110,-850.88,0.00012992,2]
[338936796,1727086256120,-1119.02,0.00012992,2]
[338936797,1727086256130,-748.01,0.00012992,2]
[338936798,1727086256140,-500.0,0.00012992,2]
[338936799,1727086256149,-1159.44,0.00012992,2]
[338936800,1727086256159,-671.94,0.00012992,2]
[338936801,1727086256168,-500.0,0.00012992,2]
[338936802,1727086256178,-500.0,0.00012992,2]
[338936803,1727086256187,-1082.91,0.00012992,2]
[338936804,1727086256197,-1013.3,0.00012992,2]
[338936805,1727086256206,-668.18,0.00012992,2]
[338936806,1727086256216,-500.0,0.00012992,2]
[338936807,1727086256226,-594.99,0.00012992,2]
[338936808,1727086256236,-500.0,0.00012992,2]
[338936809,1727086256246,-500.0,0.00012992,2]
[338936810,1727086256255,-503.31,0.00012992,2]
[338936811,1727086256265,-786.35,0.00012992,2]
[338936812,1727086256274,-818.58,0.00012992,2]
[338936813,1727086256284,-500.0,0.00012992,2]
[338936814,1727086256294,-1637.99,0.00012992,2]
[338936815,1727086256304,-500.0,0.00012992,2]
[338936816,1727086256313,-829.0,0.00012992,2]
[338936817,1727086256323,-1079.76,0.00012992,2]
[338936818,1727086256333,-787.54,0.00012992,2]
[338936819,1727086256343,-781.77,0.00012992,2]
[338936820,1727086256352,-500.0,0.00012992,2]
[338936821,1727086256363,-913.49,0.00012992,2]
[338936822,1727086256554,-739.33,0.00012992,2]
[338936823,1727086256563,-500.0,0.00012992,2]
[338936824,1727086256573,-500.0,0.00012992,2]
[338936825,1727086256583,-500.0,0.00012992,2]
[338936826,1727086256593,-942.95,0.00012992,2]
[338936827,1727086256603,-500.0,0.00012992,2]
[338936828,1727086256612,-1099.32,0.00012992,2]
[338936829,1727086256622,-500.0,0.00012992,2]
[338936830,1727086256631,-1070.65,0.00012992,2]
[338936831,1727086256641,-500.0,0.00012992,2]
[338936832,1727086256650,-500.0,0.00012992,2]
[338936833,1727086256660,-500.0,0.00012992,2]
[338936834,1727086256670,-512.75,0.00012992,2]
[338936835,1727086256679,-500.0,0.00012992,2]
[338936836,1727086256689,-1286.08,0.00012992,2]
[338936837,1727086256699,-849.26,0.00012992,2]
[338936838,1727086256708,-500.0,0.00012992,2]
[338936839,1727086256717,-500.0,0.00012992,2]
[338936840,1727086256730,-500.0,0.00012992,2]
[338936841,1727086256740,-2827.6,0.00012992,2]
[338936842,1727086256749,-500.0,0.00012992,2]
[338936843,1727086256758,-797.79,0.00012992,2]
[338936844,1727086256768,-500.0,0.00012992,2]
[338936845,1727086256778,-660.03,0.00012992,2]
[338936846,1727086256787,-500.0,0.00012992,2]
[338936847,1727086256797,-2939.1,0.00012992,2]
[338936848,1727086256807,-597.14,0.00012992,2]
[338936849,1727086256816,-500.0,0.00012992,2]
[338936850,1727086256826,-500.0,0.00012992,2]
[338936851,1727086256835,-619.89,0.00012992,2]
[338936852,1727086256844,-1105.02,0.00012992,2]
[338936853,1727086256854,-715.08,0.00012992,2]
[338936854,1727086256863,-922.21,0.00012992,2]
[338936855,1727086256872,-500.0,0.00012992,2]
[338936856,1727086256881,-860.47,0.00012992,2]
[338936857,1727086256891,-527.24,0.00012992,2]
[338936858,1727086256900,-997.48,0.00012992,2]
[338936859,1727086256909,-500.0,0.00012992,2]
[338936860,1727086256919,-798.01,0.00012992,2]
[338936861,1727086256928,-500.0,0.00012992,2]
[338936862,1727086256939,-500.0,0.00012992,2]
[338936863,1727086256950,-904.87,0.00012992,2]
[338936864,1727086256960,-500.0,0.00012992,2]
[338936865,1727086256969,-500.0,0.00012992,2]
[338936866,1727086256978,-560.55,0.00012992,2]
[338936867,1727086256989,-692.55,0.00012992,2]
[338936868,1727086256998,-500.0,0.00012992,2]
[338936869,1727086257007,-500.0,0.00012992,2]
[338936870,1727086257018,-500.0,0.00012992,2]
[338936871,1727086257027,-1377.44,0.00012992,2]
[338936872,1727086257036,-500.0,0.00012992,2]
[338936873,1727086257046,-500.0,0.00012992,2]
[338936874,1727086257055,-964.75,0.00012992,2]
[338936875,1727086257064,-500.0,0.00012992,2]
[338936876,1727086257074,-501.34637851,0.00012992,2]
[338936877,1727086257083,-719.22,0.00012992,2]
[338936878,1727086257093,-500.0,0.00012992,2]
[338936879,1727086257102,-939.06,0.00012992,2]
[338936880,1727086257111,-1616.43,0.00012992,2]
[338936881,1727086257121,-4259.77,0.00012992,2]
[338936882,1727086257130,-500.0,0.00012992,2]
[338936883,1727086257139,-500.0,0.00012992,2]
[338936884,1727086257148,-1962.37,0.00012992,2]
[338936885,1727086257157,-500.0,0.00012992,2]
[338936886,1727086257166,-500.0,0.00012992,2]
[338936887,1727086257175,-500.0,0.00012992,2]
[338936888,1727086257185,-500.0,0.00012992,2]
[338936889,1727086257193,-500.0,0.00012992,2]
[338936890,1727086257203,-500.0,0.00012992,2]
[338936891,1727086257212,-961.86,0.00012992,2]
[338936892,1727086257221,-786.76,0.00012992,2]
[338936893,1727086257230,-500.0,0.00012992,2]
[338936894,1727086257240,-516.6806999,0.00012992,2]
[338936895,1727086257249,-500.0,0.00012992,2]
[338936896,1727086257258,-500.0,0.00012992,2]